bitfinex-derivatives/quotes_SOLF0:USTF0_20250426
["timestamp","ask_amount","ask_price","bid_price","bid_amount"]
[1745669940032,25.94,148.73,148.69,6.7232]
[1745669940334,32.6616,148.73,148.69,6.7232]
[1745669941030,6.7219,148.72,148.69,6.7232]
[1745669941332,6.7219,148.72,148.68,11.98130217]
[1745669943134,6.7223,148.71,148.68,11.98130217]
[1745669943333,6.7223,148.71,148.68,5.25780217]
[1745669943531,5.25780217,148.71,148.66,5.25780217]
[1745669943725,6.723,148.7,148.66,5.25780217]
[1745669944432,6.723,148.7,148.66,11.98210217]
[1745669945934,6.723,148.7,148.67,6.7241]
[1745669946236,11.98030217,148.71,148.67,11.98190217]
[1745669946436,2.0075,148.74,148.69,5.25780217]
[1745669946736,5.25780217,148.73,148.69,5.25780217]
[1745669947033,5.25780217,148.72,148.68,11.98110217]
[1745669947635,10.77,148.71,148.68,11.98110217]
[1745669948334,17.4923,148.71,148.68,11.98110217]
[1745669948636,17.4923,148.71,148.68,5.25780217]
[1745669949634,17.4923,148.71,148.67,6.7239]
[1745669949939,6.7228,148.7,148.67,5.25780217]
[1745669950434,22.75040217,148.71,148.67,11.98180217]
[1745669951137,17.4926,148.71,148.68,11.98140217]
[1745669951538,17.4926,148.71,148.68,5.25780217]
[1745669952639,17.4926,148.71,148.68,11.98140217]
[1745669952841,10.77,148.71,148.7,5.25780217]
[1745669953139,10.77,148.71,148.68,11.98110217]
[1745669953339,22.75040217,148.71,148.66,5.25780217]
[1745669953540,16.02780217,148.71,148.66,5.25780217]
[1745669954842,22.75040217,148.71,148.67,6.7241]
[1745669955738,10.77,148.71,148.68,5.25780217]
[1745669956443,10.77,148.71,148.69,6.7231]
[1745669957846,10.77,148.71,148.68,11.98120217]
[1745669959347,17.4924,148.71,148.68,11.98120217]
[1745669959547,16.02780217,148.71,148.67,25.92]
[1745669960047,6.7231,148.7,148.67,32.6441]
[1745669960346,16.02780217,148.71,148.67,32.6441]
[1745669960747,22.75040217,148.71,148.67,32.6441]
[1745669961146,10.77,148.71,148.68,11.98130217]
[1745669963250,17.4926,148.71,148.68,5.25780217]
[1745669963552,10.77,148.71,148.68,5.25780217]
[1745669964551,10.77,148.71,148.68,11.98120217]
[1745669966051,17.4923,148.71,148.68,11.98120217]
[1745669966550,10.77,148.71,148.68,11.98120217]
[1745669966955,10.77,148.71,148.68,5.25780217]
[1745669967153,16.02780217,148.71,148.67,25.92]
[1745669967453,5.25780217,148.69,148.64,31.17780217]
[1745669967653,6.7242,148.67,148.64,31.17780217]
[1745669968354,11.98170217,148.68,148.64,37.90320217]
[1745669968549,6.7239,148.68,148.64,31.17780217]
[1745669969454,6.7239,148.68,148.64,37.90310217]
[1745669970551,6.7239,148.68,148.65,5.25780217]
[1745669971056,5.25780217,148.69,148.65,5.25780217]
[1745669971458,5.25780217,148.68,148.64,25.92]
[1745669971654,5.25780217,148.67,148.64,25.92]
[1745669971859,5.25780217,148.67,148.63,5.25780217]
[1745669972059,6.7248,148.66,148.63,5.25780217]
[1745669972255,5.25780217,148.68,148.64,5.25780217]
[1745669972559,6.7244,148.67,148.64,5.25780217]
[1745669972759,5.25780217,148.68,148.64,5.25780217]
[1745669973060,6.7244,148.67,148.64,5.25780217]
[1745669973764,11.98170217,148.68,148.64,11.98320217]
[1745669975464,11.98170217,148.68,148.65,6.7249]
[1745669976663,5.25780217,148.66,148.54,504.2498]
[1745669976863,5.25780217,148.66,148.62,5.25780217]
[1745669977457,6.7253,148.65,148.62,5.25780217]
[1745669978862,6.7253,148.65,148.62,11.98420217]
[1745669979463,6.7253,148.65,148.62,5.25780217]
[1745669979663,11.98250217,148.66,148.62,5.25780217]
[1745669979958,5.25780217,148.66,148.62,5.25780217]
[1745669980163,6.7252,148.65,148.62,5.25780217]
[1745669983567,6.7256,148.64,148.62,5.25780217]
[1745669983770,6.7256,148.64,148.61,5.25780217]
[1745669983965,5.25780217,148.65,148.61,5.25780217]
[1745669984168,6.7261,148.63,148.59,25.92]
[1745669984367,11.98390217,148.63,148.59,31.17780217]
[1745669985070,11.98390217,148.63,148.59,37.90520217]
[1745669986472,5.25780217,148.63,148.59,37.90520217]
[1745669987064,11.98380217,148.63,148.59,37.90520217]
[1745669987970,5.25780217,148.61,148.56,31.15780217]
[1745669988181,5.25780217,148.6,148.56,31.15780217]
[1745669988473,11.98540217,148.6,148.56,37.88660217]
[1745669988873,11.98540217,148.6,148.56,32.6288]
[1745669989173,6.7276,148.6,148.56,32.6288]
[1745669989375,11.98540217,148.6,148.56,32.6288]
[1745669992280,5.25780217,148.58,148.56,25.9]
[1745669992482,5.25780217,148.58,148.54,5.25780217]
[1745669992681,5.25780217,148.59,148.56,6.729]
[1745669992882,5.25780217,148.6,148.56,5.25780217]
[1745669993780,6.727,148.61,148.57,6.7284]
[1745669993978,4.1319,148.62,148.58,5.25780217]
[1745669994178,9.38970217,148.62,148.53,25.9]
[1745669994374,4.1319,148.62,148.57,6.7283]
[1745669994684,5.25780217,148.61,148.57,5.25780217]
[1745669995386,5.25780217,148.61,148.58,6.7279]
[1745669998785,16.11630217,148.62,148.58,6.7279]
[1745670000282,16.11630217,148.62,148.58,11.98570217]
[1745670000487,2.0918,148.62,148.59,6.7276]
[1745670000684,37.88390217,148.63,148.59,6.7276]
[1745670002693,31.15780217,148.63,148.6,6.7272]
[1745670002990,5.25780217,148.63,148.6,6.7272]
[1745670003582,11.98370217,148.63,148.6,6.7272]
[1745670004590,6.7264,148.62,148.58,5.25780217]
[1745670004793,11.98420217,148.62,148.58,5.25780217]
[1745670004988,11.98420217,148.62,148.58,11.98570217]
[1745670005992,11.98420217,148.62,148.58,6.7279]
[1745670006188,11.98460217,148.61,148.57,37.88640217]
[1745670006389,5.25780217,148.59,148.54,31.15780217]
[1745670006589,3.965,148.68,148.53,25.9]
[1745670006590,5.25780217,148.56,148.53,25.9]
[1745670006789,5.25780217,148.56,148.53,32.6302]
[1745670007393,5.25780217,148.56,148.54,6.73]
[1745670007593,5.25780217,148.57,148.54,6.73]
[1745670007794,11.98630217,148.58,148.54,6.73]
[1745670008999,11.98630217,148.58,148.55,6.7295]
[1745670009191,11.98630217,148.58,148.53,31.15780217]
[1745670009595,11.98630217,148.58,148.54,6.7297]
[1745670010096,11.98660217,148.57,148.53,32.6303]
[1745670010594,5.25780217,148.56,148.53,25.9]
[1745670010795,5.25780217,148.55,148.53,25.9]
[1745670011190,11.98740217,148.55,148.53,25.9]
[1745670011395,5.25780217,148.54,148.5,25.9]
[1745670011596,5.25780217,148.53,148.5,25.9]
[1745670011792,5.25780217,148.53,148.5,32.6317]
[1745670012096,5.25780217,148.53,148.5,25.9]
[1745670012288,11.98850217,148.53,148.5,25.9]
[1745670012594,5.25780217,148.53,148.5,25.9]
[1745670012795,5.25780217,148.53,148.5,32.6315]
[1745670012994,5.25780217,148.54,148.5,31.15780217]
[1745670013697,5.25780217,148.54,148.51,6.7311]
[1745670015797,5.25780217,148.54,148.52,6.7309]
[1745670016800,25.9,148.57,148.5,31.15780217]
[1745670016801,5.25780217,148.55,148.5,31.15780217]
[1745670017395,5.25780217,148.56,148.51,5.25780217]
[1745670017596,31.15780217,148.57,148.52,5.25780217]
[1745670017798,5.25780217,148.56,148.52,5.25780217]
[1745670017998,5.25780217,148.55,148.53,6.73]
[1745670020304,25.9,148.57,148.54,6.73]
[1745670020498,5.25780217,148.57,148.54,6.73]
[1745670021899,5.25780217,148.56,148.53,6.7303]
[1745670022105,5.25780217,148.55,148.53,6.7303]
[1745670022402,5.25780217,148.54,148.51,6.7311]
[1745670022597,5.25780217,148.53,148.51,6.7311]
[1745670022798,5.25780217,148.53,148.48,5.25780217]
[1745670023203,5.25780217,148.52,148.5,6.7315]
[1745670023898,5.25780217,148.52,148.49,6.7321]
[1745670024401,5.25780217,148.52,148.47,515.37780217]
[1745670024600,5.25780217,148.52,148.47,31.15780217]
[1745670024800,5.25780217,148.51,148.47,31.15780217]
[1745670025201,11.98920217,148.51,148.47,37.89070217]
[1745670025702,11.98920217,148.51,148.48,6.7327]
[1745670026001,5.25780217,148.51,148.48,6.7327]
[1745670026202,5.25780217,148.51,148.47,31.15780217]
[1745670027200,5.25780217,148.51,148.47,25.9]
[1745670027402,11.98920217,148.51,148.47,31.15780217]
[1745670027804,11.98920217,148.51,148.47,37.89070217]
[1745670028304,11.98920217,148.51,148.48,6.7327]
[1745670028603,11.98920217,148.51,148.47,31.15780217]
[1745670029903,11.98920217,148.51,148.47,37.89080217]
[1745670032206,5.25780217,148.51,148.48,6.7327]
[1745670033409,11.98920217,148.51,148.48,6.7327]
[1745670034403,11.98920217,148.51,148.47,37.89080217]
[1745670039225,6.7318,148.5,148.47,37.89080217]
[1745670039411,11.98960217,148.5,148.47,31.15780217]
[1745670041919,11.98960217,148.5,148.47,37.89090217]
[1745670042818,11.98960217,148.5,148.47,31.15780217]
[1745670044015,6.7318,148.5,148.47,31.15780217]
[1745670044318,6.7318,148.5,148.47,25.9]
[1745670044519,6.7318,148.5,148.47,31.15780217]
[1745670045318,11.98930217,148.51,148.47,37.89090217]
[1745670048022,6.7318,148.5,148.47,31.15780217]
[1745670048824,11.98960217,148.5,148.47,25.9]
[1745670049220,6.7323,148.49,148.47,25.9]
[1745670049715,5.25780217,148.5,148.47,25.9]
[1745670050315,6.7324,148.49,148.46,5.25780217]
[1745670050513,5.25780217,148.5,148.46,5.25780217]
[1745670050820,5.25780217,148.51,148.47,5.25780217]
[1745670051021,18.33780217,148.52,148.48,5.25780217]
[1745670051220,13.08,148.52,148.49,5.25780217]
[1745670051720,19.8112,148.52,148.49,5.25780217]
[1745670051922,13.08,148.52,148.5,5.25780217]
[1745670052322,7.31180217,148.54,148.5,5.25780217]
[1745670052323,5.25780217,148.54,148.5,5.25780217]
[1745670052523,7.26160217,148.55,148.5,5.25780217]
[1745670052725,5.25780217,148.54,148.5,5.25780217]
[1745670052922,5.25780217,148.54,148.49,5.25780217]
[1745670053225,11.98810217,148.54,148.49,11.98960217]
[1745670053518,2.0038,148.55,148.51,5.25780217]
[1745670053725,2.0038,148.55,148.52,5.25780217]
[1745670054521,8.7336,148.55,148.52,5.25780217]
[1745670054722,2.0038,148.55,148.52,5.25780217]
[1745670055024,31.15780217,148.56,148.52,5.25780217]
[1745670055025,37.88720217,148.56,148.52,5.25780217]
[1745670055222,11.98720217,148.56,148.52,5.25780217]
[1745670055527,29.8725,148.59,148.53,5.25780217]
[1745670055528,11.98660217,148.57,148.53,5.25780217]
[1745670055724,6.7288,148.57,148.54,5.25780217]
[1745670055927,5.25780217,148.58,148.54,5.25780217]
[1745670056224,6.7287,148.57,148.54,5.25780217]
[1745670056427,6.7287,148.57,148.53,6.7302]
[1745670056428,5.25780217,148.57,148.53,5.25780217]
[1745670056625,5.25780217,148.54,148.5,5.25780217]
[1745670056819,5.25780217,148.54,148.49,31.13780217]
[1745670058326,5.25780217,148.53,148.49,31.13780217]
[1745670058529,5.25780217,148.51,148.49,25.88]
[1745670058722,5.25780217,148.51,148.46,5.25780217]
[1745670059123,6.7323,148.49,148.46,5.25780217]
[1745670059425,5.25780217,148.51,148.46,5.25780217]
[1745670059622,6.732,148.5,148.46,11.99110217]
[1745670059824,6.732,148.5,148.47,5.25780217]
[1745670060524,6.7323,148.49,148.46,5.25780217]
[1745670061029,11.99050217,148.49,148.45,31.13780217]
[1745670061230,5.25780217,148.47,148.43,5.25780217]
[1745670062228,11.99100217,148.47,148.43,11.99260217]
[1745670063028,11.99100217,148.47,148.42,32.6152]
[1745670063228,11.99100217,148.47,148.43,5.25780217]
[1745670063823,5.25780217,148.47,148.43,11.99280217]
[1745670064229,5.25780217,148.47,148.43,5.25780217]
[1745670064426,11.99100217,148.47,148.43,5.25780217]
[1745670064626,5.25780217,148.47,148.43,5.25780217]
[1745670064828,5.25780217,148.48,148.44,5.25780217]
[1745670065026,11.99070217,148.48,148.44,5.25780217]
[1745670065834,11.99070217,148.48,148.44,11.99200217]
[1745670066232,5.25780217,148.48,148.44,11.99200217]
[1745670066930,5.25780217,148.48,148.45,6.734]
[1745670067132,5.25780217,148.48,148.44,5.25780217]
[1745670067932,5.25780217,148.48,148.44,11.99190217]
[1745670068327,5.25780217,148.48,148.44,5.25780217]
[1745670068836,11.99020217,148.49,148.45,5.25780217]
[1745670069236,11.99020217,148.49,148.45,11.99170217]
[1745670070034,5.25780217,148.49,148.45,11.99170217]
[1745670070235,5.25780217,148.49,148.46,6.7335]
[1745670070629,5.25780217,148.49,148.45,5.25780217]
[1745670070630,11.99010217,148.49,148.45,5.25780217]
[1745670071030,5.25780217,148.49,148.46,6.7335]
[1745670071434,5.25780217,148.49,148.45,11.99170217]
[1745670071834,5.25780217,148.48,148.45,6.7339]
[1745670072135,5.25780217,148.48,148.44,11.99210217]
[1745670072334,5.25780217,148.47,148.44,6.7343]
[1745670072537,5.25780217,148.46,148.42,31.13780217]
[1745670073533,11.99170217,148.46,148.42,37.87290217]
[1745670073830,5.25780217,148.45,148.42,32.6151]
[1745670074030,11.99190217,148.45,148.4,5.25780217]
[1745670074234,5.25780217,148.43,148.38,25.86]
[1745670074429,5.25780217,148.43,148.38,5.25780217]
[1745670074736,5.25780217,148.43,148.4,6.736]
[1745670075831,5.25780217,148.43,148.39,11.99440217]
[1745670076336,5.25780217,148.43,148.37,29.8264]
[1745670076534,5.25780217,148.43,148.39,5.25780217]
[1745670076738,11.99280217,148.43,148.39,5.25780217]
[1745670077035,5.25780217,148.43,148.39,11.99430217]
[1745670077235,5.25780217,148.44,148.39,5.25780217]
[1745670077533,11.99260217,148.44,148.4,6.7362]
[1745670077838,5.25780217,148.41,148.33,5.25780217]
[1745670078042,5.25780217,148.37,148.32,31.11780217]
[1745670079141,2.0447,148.4,148.32,31.11780217]
[1745670079142,5.25780217,148.36,148.32,25.86]
[1745670079438,5.25780217,148.36,148.32,31.11780217]
[1745670080638,11.99600217,148.36,148.32,31.11780217]
[1745670080838,5.25780217,148.36,148.32,31.11780217]
[1745670081036,2.0447,148.4,148.32,25.86]
[1745670081241,5.25780217,148.45,148.39,5.25780217]
[1745670081431,5.25780217,148.45,148.4,5.25780217]
[1745670081635,11.99280217,148.43,148.39,5.25780217]
[1745670081939,5.25780217,148.43,148.38,5.25780217]
[1745670082239,11.99290217,148.43,148.38,5.25780217]
[1745670082435,5.25780217,148.44,148.39,5.25780217]
[1745670082640,2.016,148.47,148.41,5.25780217]
[1745670082839,2.016,148.47,148.45,5.25780217]
[1745670083240,2.016,148.47,148.44,5.25780217]
[1745670083842,2.016,148.47,148.42,8.25348511]
[1745670084141,2.016,148.47,148.44,6.7345]
[1745670085737,2.016,148.47,148.45,6.7339]
[1745670085943,25.86,148.49,148.42,8.25348511]
[1745670086437,25.86,148.49,148.46,6.7336]
[1745670086642,6.7318,148.5,148.46,6.7336]
[1745670087442,6.7315,148.51,148.46,6.7336]
[1745670087642,518.91348511,148.52,148.46,6.7336]
[1745670088445,510.66,148.52,148.47,6.7331]
[1745670088646,25.86,148.52,148.47,6.7331]
[1745670088853,25.86,148.52,148.46,8.25348511]
[1745670089848,32.5909,148.52,148.48,6.7325]
[1745670090251,6.7309,148.52,148.48,25.86]
[1745670090946,6.7314,148.51,148.48,25.86]
[1745670093858,6.7311,148.52,148.48,25.86]
[1745670094157,5.8614,148.53,148.49,6.7322]
[1745670094358,3.9268,148.53,148.49,6.7322]
[1745670095057,1.9238,148.53,148.49,6.7322]
[1745670095258,8.6543,148.53,148.49,6.7322]
[1745670095956,6.7311,148.52,148.48,32.5926]
[1745670098659,8.6544,148.53,148.49,6.7321]
[1745670099356,1.9238,148.53,148.48,34.11348511]
[1745670099656,6.7298,148.55,148.5,8.25348511]
[1745670099861,6.7298,148.55,148.51,6.7311]
[1745670100162,80.17422,148.56,148.52,25.86]
[1745670101364,86.90342,148.56,148.52,32.5907]
[1745670101558,86.90342,148.56,148.52,25.86]
[1745670102658,6.7296,148.55,148.52,25.86]
[1745670102864,88.42770511,148.56,148.47,8.25348511]
[1745670103064,6.7308,148.53,148.48,25.84]
[1745670103467,88.42770511,148.56,148.48,32.5724]
[1745670104467,6.7307,148.53,148.48,32.5724]
[1745670104867,6.7307,148.53,148.49,6.7322]
[1745670105465,88.42770511,148.56,148.48,25.84]
[1745670105963,80.17422,148.56,148.48,25.84]
[1745670106169,80.17422,148.56,148.51,8.25348511]
[1745670106469,80.17422,148.56,148.52,25.82]
[1745670106874,80.17422,148.56,148.53,8.25348511]
[1745670107266,80.17422,148.56,148.55,8.25348511]
[1745670107470,80.17422,148.56,148.53,8.25348511]
[1745670107866,80.17422,148.56,148.55,14.98298511]
[1745670108171,59.35850001,148.56,148.55,14.98298511]
[1745670110368,59.35850001,148.56,148.54,6.7298]
[1745670110570,59.35850001,148.56,148.52,25.82]
[1745670110870,59.35850001,148.56,148.54,6.7299]
[1745670111974,59.35850001,148.56,148.54,32.5499]
[1745670113072,59.35850001,148.56,148.55,6.7295]
[1745670115270,59.35850001,148.56,148.55,14.98298511]
[1745670115667,38.75380001,148.56,148.55,14.98298511]
[1745670118281,1.9071,148.61,148.58,6.728]
[1745670118478,1.9071,148.61,148.58,32.548]
[1745670122083,34.07348511,148.66,148.59,6.7277]
[1745670122289,1.9187,148.65,148.59,6.7277]
[1745670122687,6.7256,148.64,148.59,6.7277]
[1745670123584,1.9187,148.65,148.58,25.82]
[1745670123792,12.31188511,148.64,148.58,25.82]
[1745670124287,12.31188511,148.64,148.55,8.25348511]
[1745670124288,8.25348511,148.62,148.56,25.8]
[1745670124485,8.25348511,148.6,148.56,25.8]
[1745670124680,6.7292,148.56,148.53,516.9503]
[1745670125077,4.1361,148.59,148.53,510.22]
[1745670125395,14.47,148.55,148.53,510.22]
[1745670125589,14.47,148.55,148.54,6.7297]
[1745670126988,14.47,148.55,148.53,516.9503]
[1745670127486,14.47,148.55,148.54,6.73]
[1745670127991,14.47,148.55,148.53,510.22]
[1745670128184,14.47,148.55,148.53,516.9502]
[1745670130393,14.47,148.55,148.53,510.22]
[1745670132292,21.1996,148.55,148.53,510.22]
[1745670133788,6.7317,148.51,148.41,484.42]
[1745670133992,8.25348511,148.51,148.42,27.05659273]
[1745670134286,6.7321,148.5,148.43,8.25348511]
[1745670134491,6.7321,148.5,148.44,6.7344]
[1745670134993,6.7314,148.51,148.45,6.734]
[1745670135194,12.35208511,148.53,148.46,25.78]
[1745670135394,4.0986,148.53,148.46,25.78]
[1745670135593,6.7312,148.52,148.46,32.5132]
[1745670135787,4.0986,148.53,148.47,8.25348511]
[1745670136595,4.0986,148.53,148.47,14.98628511]
[1745670136895,4.0986,148.53,148.46,25.78]
[1745670137091,6.7317,148.51,148.46,25.78]
[1745670137296,8.25348511,148.51,148.46,25.78]
[1745670138494,6.733,148.48,148.46,25.78]
[1745670138797,8.25348511,148.49,148.43,32.5346]
[1745670138997,6.7332,148.47,148.44,6.7345]
[1745670139498,8.25348511,148.49,148.44,6.7345]
[1745670139696,6.733,148.48,148.44,6.7345]
[1745670139888,8.25348511,148.47,148.43,25.8]
[1745670140092,2.0727,148.47,148.43,25.8]
[1745670140392,2.0727,148.47,148.44,6.7344]
[1745670140588,2.0727,148.47,148.43,25.8]
[1745670140793,2.0727,148.47,148.43,34.05348511]
[1745670141092,25.8,148.51,148.43,34.05348511]
[1745670141496,4.183,148.52,148.43,34.05348511]
[1745670141695,4.183,148.52,148.48,6.7324]
[1745670142197,2.0727,148.52,148.5,6.7318]
[1745670142800,2.0727,148.52,148.49,6.7321]
[1745670143696,2.0727,148.52,148.48,6.7326]
[1745670144302,8.8037,148.52,148.47,32.533]
[1745670144497,8.8037,148.52,148.47,25.8]
[1745670144902,6.7315,148.51,148.47,25.8]
[1745670145702,8.8038,148.52,148.47,32.5327]
[1745670146403,8.8038,148.52,148.48,6.7327]
[1745670147304,6.7314,148.51,148.48,6.7327]
[1745670148206,6.7314,148.51,148.47,32.533]
[1745670150008,2.0727,148.52,148.47,25.8]
[1745670150509,2.0727,148.52,148.48,6.7325]
[1745670151009,8.804,148.52,148.47,32.533]
[1745670151307,2.0727,148.52,148.47,32.533]
[1745670151509,2.0727,148.52,148.47,25.8]
[1745670151908,8.25348511,148.51,148.44,25.8]
[1745670152513,6.7323,148.49,148.44,32.5342]
[1745670152712,8.25348511,148.51,148.44,32.5342]
[1745670153113,6.7328,148.48,148.44,32.5342]
[1745670153305,8.25348511,148.51,148.44,25.8]
[1745670153508,8.25348511,148.49,148.44,25.8]
[1745670153708,1.9537,148.48,148.41,25.8]
[1745670154213,6.7339,148.46,148.41,25.8]
[1745670154610,6.7339,148.46,148.42,6.7354]
[1745670155108,8.25348511,148.47,148.41,25.8]
[1745670155311,8.25348511,148.45,148.41,25.8]
[1745670155614,6.7346,148.44,148.41,25.8]
[1745670155815,8.25348511,148.45,148.41,25.8]
[1745670156613,2.0729,148.44,148.41,32.5357]
[1745670156814,2.0729,148.44,148.41,6.7357]
[1745670157520,2.0241,148.47,148.39,34.05348511]
[1745670158116,8.7576,148.47,148.39,34.05348511]
[1745670158817,6.7335,148.47,148.39,34.05348511]
[1745670159017,6.7335,148.47,148.42,6.7351]
[1745670159719,3.8805,148.48,148.42,6.7351]
[1745670159720,6.7338,148.46,148.42,6.7351]
[1745670161023,3.8805,148.48,148.43,6.7347]
[1745670161220,1.9268,148.48,148.43,25.8]
[1745670161717,1.9268,148.48,148.45,6.734]
[1745670162022,1.9268,148.48,148.43,25.8]
[1745670162820,8.25348511,148.45,148.37,486.484]
[1745670163012,8.25348511,148.45,148.38,25.8]
[1745670163321,6.7347,148.44,148.4,6.7362]
[1745670163822,14.98768511,148.45,148.4,6.7362]
[1745670164719,6.7345,148.44,148.4,6.7362]
[1745670166528,6.7343,148.45,148.41,6.7359]
[1745670166920,36.11778511,148.47,148.41,6.7359]
[1745670167122,6.7338,148.46,148.38,34.05348511]
[1745670167329,1.9268,148.48,148.4,8.25348511]
[1745670167625,8.6599,148.48,148.4,8.25348511]
[1745670167824,1.9268,148.48,148.42,8.25348511]
[1745670168025,1.9268,148.48,148.43,25.78]
[1745670168225,6.732,148.5,148.46,6.7335]
[1745670168925,8.25348511,148.5,148.43,25.78]
[1745670169126,8.25348511,148.48,148.43,25.78]
[1745670169330,6.7339,148.46,148.43,25.78]
[1745670170527,8.25348511,148.48,148.43,25.78]
[1745670170722,8.25348511,148.5,148.43,25.78]
[1745670170923,14.33888511,148.52,148.43,25.78]
[1745670171121,6.7319,148.5,148.46,6.7333]
[1745670171531,6.7319,148.5,148.43,34.03348511]
[1745670172733,6.7319,148.5,148.45,6.734]
[1745670172935,6.7319,148.5,148.43,34.03348511]
[1745670173133,6.7319,148.5,148.46,6.7335]
[1745670174235,6.7323,148.49,148.46,6.7335]
[1745670174731,6.7321,148.5,148.43,34.03348511]
[1745670175033,2.046,148.52,148.45,8.25348511]
[1745670175430,8.7772,148.52,148.48,6.7323]
[1745670175633,25.78,148.53,148.47,34.03348511]
[1745670175834,14.47,148.55,148.47,34.03348511]
[1745670176028,14.47,148.55,148.49,6.7319]
[1745670176531,6.7309,148.53,148.49,6.7319]
[1745670176936,14.47,148.55,148.49,6.7319]
[1745670177636,14.47,148.55,148.5,6.7315]
[1745670177839,6.7302,148.54,148.5,6.7315]
[1745670178232,11.93,148.53,148.5,6.7315]
[1745670178937,18.6607,148.53,148.5,6.7315]
[1745670179233,11.93,148.53,148.49,6.7322]
[1745670179429,11.93,148.53,148.47,34.03348511]
[1745670180332,6.7317,148.51,148.48,6.7326]
[1745670180934,6.7317,148.51,148.47,40.76648511]
[1745670182137,11.93,148.53,148.47,25.78]
[1745670182339,8.25348511,148.52,148.47,25.78]
[1745670182532,6.7327,148.48,148.47,25.78]
[1745670183031,6.7339,148.46,148.44,25.78]
[1745670183238,8.25348511,148.5,148.44,25.78]
[1745670183537,6.7334,148.47,148.44,32.5144]
[1745670184338,6.7334,148.47,148.44,25.78]
[1745670185039,8.25348511,148.5,148.44,25.78]
[1745670185541,6.7341,148.45,148.44,25.78]
[1745670186135,6.7338,148.46,148.44,25.78]
[1745670191244,6.7341,148.45,148.44,25.78]
[1745670191944,6.7339,148.46,148.44,25.78]
[1745670192147,8.25348511,148.5,148.43,6.7349]
[1745670192546,6.7335,148.47,148.43,6.7349]
[1745670192750,29.852,148.52,148.45,8.25348511]
[1745670192947,29.852,148.52,148.45,34.03348511]
[1745670193446,38.10548511,148.52,148.45,25.78]
[1745670194043,8.25348511,148.5,148.45,25.78]
[1745670195049,8.25348511,148.5,148.45,32.5141]
[1745670195050,6.733,148.48,148.45,32.5141]
[1745670196149,6.733,148.48,148.45,25.78]
[1745670197955,6.7332,148.47,148.45,25.78]
[1745670199856,6.7329,148.48,148.45,32.5141]
[1745670202158,6.7329,148.48,148.45,25.78]
[1745670202958,6.7329,148.48,148.45,32.514]
[1745670203552,38.10548511,148.52,148.45,25.78]
[1745670203759,11.93,148.53,148.5,5.279366]
[1745670204260,18.6606,148.53,148.5,12.011066]
[1745670204660,11.93,148.53,148.51,5.279366]
[1745670205161,11.93,148.53,148.52,5.279366]
[1745670205669,11.93,148.53,148.51,6.731]
[1745670207461,11.93,148.53,148.52,6.7309]
[1745670207661,11.93,148.53,148.52,14.97569604]
[1745670207962,6.7289,148.57,148.53,6.7304]
[1745670208260,6.7289,148.57,148.53,32.4704]
[1745670209862,6.7291,148.56,148.53,25.74]
[1745670210166,12.18329604,148.59,148.53,25.74]
[1745670210361,6.7295,148.56,148.53,25.74]
[1745670212772,6.7295,148.56,148.53,32.4703]
[1745670213776,6.7296,148.55,148.53,25.74]
[1745670214175,6.7305,148.53,148.5,14.97619604]
[1745670214377,8.24479604,148.57,148.5,25.74]
[1745670215477,6.7299,148.55,148.5,25.74]
[1745670215877,12.18329604,148.59,148.5,25.74]
[1745670216579,12.18329604,148.59,148.52,6.7307]
[1745670217478,6.7294,148.56,148.52,6.7307]
[1745670219179,6.7294,148.56,148.53,6.7303]
[1745670219382,6.7288,148.57,148.53,6.7303]
[1745670219683,12.18329604,148.59,148.53,6.7303]
[1745670219885,3.9385,148.59,148.54,6.73]
[1745670220183,2.0117,148.59,148.54,6.73]
[1745670220585,6.7286,148.58,148.54,6.73]
[1745670220784,6.7286,148.58,148.54,32.47]
[1745670221189,6.7286,148.58,148.55,6.7294]
[1745670221584,6.7286,148.58,148.54,25.74]
[1745670221787,6.7287,148.57,148.54,32.4698]